{"text_format":"1","workbook":"xlsx","n_sheets":3,"sheets":["Hoja1","Hoja2","Hoja3"],"not_rendered":{"charts":0,"images":0,"macros":0,"external_links":0,"defined_names":0,"comments":0,"pivot_tables":0},"unopened":[],"bounds":{"document_bytes":16777216,"sheet_cells":100000,"rows_first":2000,"rows_last":500,"rows_between":2000,"halvings":0,"cell_chars":16384,"cell_head_chars":4096},"cells_cut":0,"cells_raw":0,"read":"whole","date_system":"1900"}

{"sheet":"Hoja1","index":0,"n_rows":37,"n_cols":16,"rows_kept":37,"cut":false,"hidden":false,"merged":[[0,1,0,15],[2,1,2,15]]}
[null,"INSTITUTO TECNOLÓGICO SUPERIOR DE PEROTE"]
[]
[null,"VIÁTICOS EJERCIDOS EN EL MES DE: JULIO 2014"]
[]
["ÁREA","OBJETO O MOTIVO DE LA COMISIÓN","SERV. PÚB. COMISIONADOS","LUGAR DE COMISIÓN","DESTINO DE LA COMISIÓN","FECHA DE INICIO","FECHA DE TERMINO","ORIGEN DEL RECURSO","ALIMENTOS","HOSPEDAJE","PASAJES","PEAJES","TRASLADOS LOCALES","COMBUSTIBLES","IMPORTE EJERCIDO","RESPONSABLE QUE PROPORCIONA LA INFORMACIÓN"]
["PYV","POLIZA 2",4,"EDO.","VERACRUZ, VER.","2014-07-01","2014-07-01","FED.",{"$f":"360+300+300+360","v":1320},null,null,212,null,600,{"$f":"SUM(I6:N6)","v":2132},"REC. FINANCIEROS"]
["ACAD","ASISTIR A ENTREGA DE DOCUMENTACION EN LA SECRETARIA DE TRABAJO.",1,"EDO.","XALAPA,VER.","2014-07-03","3014-07-03","FED.",300,null,212,null,null,200,{"$f":"SUM(I7:N7)","v":712},"REC. FINANCIEROS"]
["ACAD","ASISTIR A ENTREGA DE DOCUMENTACION EN LA SECRETARIA DE TRABAJO.",1,"EDO.","XALAPA, VER.","3014-07-04","2014-07-04","FED.",300,null,124,null,100,null,524,"REC. FINANCIEROS"]
["PYV","ASISTIR A REUNION DE TRABAJO EN LA SECRETARIA DE ECONOMIA Y ENTREGA DE DOCUMENTACION EN DIFERENTES DE PENDENCIAS.",1,"EDO.","XALAPA, VER.","2014-07-03","2014-07-03","FED.",300,null,128,null,100,null,528,"REC. FINANCIEROS"]
["ACAD","ASISTIR A PLATICA INFORMATIVA SOBRE OFERTAS DE POSGRADO.",1,"EDO.","ORIZABA, VER.","2014-07-04","2014-07-04","FED.",300,null,null,200,null,400,900,"REC. FINANCIEROS"]
["PYV","ASISTIR A LA CIUDAD DE MEXICO A ENTREGAR DOCUMENTACION EN DIVERSAS DEPENDENCIAS",2,"NAC.","MEXICO, D.F.","2014-07-05","2014-07-05","FED.",600,null,null,550,null,550,1700,"REC. FINANCIEROS"]
["PYV","ASISTIR A ENTREGAR TITULOS PARA TRAMITE DE CEDULA PROFESIONAL.",1,"NAC.","MEXICO, D.F.","2014-07-07","2014-07-07","FED.",600,null,1200,null,200,null,2000,"REC. FINANCIEROS"]
["ACAD","ASISTIR A LA CELEBRACION DEL INGENIERO.",1,"EDO.","VERACRUZ, VER.","2014-07-06","2014-07-06","FED.",294,null,null,675,null,557.20000000000005,1526.2,"REC. FINANCIEROS"]
["ACAD","ASISTIR A REUNION DE LA CELEBRACION DEL DIA DEL INGENIERO EN VERACRUZ",1,"EDO.","VERACRUZ, VER.","2014-07-14","2014-07-14","FED.",294,null,null,675,null,557.20000000000005,1526.2,"REC. FINANCIEROS"]
["ACAD","ASISTIR A REUNION DE TRABAJO",2,"EDO.","VERACRUZ, VER.","2014-07-05","2014-07-05","FED.",600,null,null,234,null,500,1334,"REC. FINANCIEROS"]
["PYV","ASISTIR A REUNION DE TRABAJO ",2,"EDO.","VERACRUZ, VER.","2014-07-07","2014-07-07","FED.",700,null,null,null,null,350,1050,"REC. FINANCIEROS"]
["ADMO","ASISTOR A REUNION EN LA SECRETARIA DEL TRABAJO",1,"EDO.","XALAPA, VER.","2014-07-07","2014-07-07","FED.",365,null,null,106,null,{"$f":"150+160","v":310},781,"REC. FINANCIEROS"]
["PYV","ASISTIR A GRADUACIONES A PROMOCION DE LAS CARRERAS DEL ITSPE.",1,"EDO.","ALTOTONGA, VER.","2014-07-11","2014-07-11","FED.",660,null,null,null,null,200,860,"REC. FINANCIEROS"]
["ACAD","ASISTIR A REUNION SOBRE PLANEACION ESTRATEGICA.",1,"EDO.","VERACRUZ, VER.","2014-07-16","2014-07-16","FED.",1080,null,null,660,400,600,2740,"REC. FINANCIEROS"]
["PYV","ASISTIR A REUNION DE TRABAJO EN EL TECNOLOGICO",1,"NAC.","PUEBLA, PUE.","2014-07-17","2014-07-17","FED.",360,null,null,390,null,400,1150,"REC. FINANCIEROS"]
["ACAD","ASISTIR A RECOGER SEMILLA DE CEBADA.",1,"NAC.","PUEBLA, PUE.","2014-07-18","2014-07-18","FED.",null,null,null,200,null,300,500,"REC. FINANCIEROS"]
["ACAD","ASISTIR A ENTREGA DE DOCUMENTACION Y REUNION DE TRABAJO DE AUDITORIA.",1,"EDO.","CORDOBA, VER.","2014-07-18","2014-07-18","FED.",300,null,552,null,700,null,1552,"REC. FINANCIEROS"]
["PYV","ASISTIR A ENTREGA DE DOCUMENTACION DE DIFERENTES DEPENDENCIAS.",1,"EDO.","XALAPA, VER.","2014-07-19","2014-07-19","FED.",300,null,null,212,null,200,712,"REC. FINANCIEROS"]
["PYV","ASISTIR A REUNION DE TRABAJO REFERENTE AL PIFIF.",1,"NAC.","MEXICO, D.F.","2014-07-21","2014-07-22","FED.",{"$f":"720*5","v":3600},null,null,750,null,1400,5750,"REC. FINANCIEROS"]
["PYV","ASISTIR A REUNION DE TRABAJO EN LA DET",1,"EDO.","XALAPA,VER.","2014-07-21","2014-07-21","FED.",1440,null,null,null,null,null,1440,"REC. FINANCIEROS"]
["ADMO","ASISTIR A ENTREGAR DOCUMENTACION.",1,"EDO.","XALAPA, VER.","2014-07-22","2014-07-22","FED.",300,null,null,212,null,200,712,"REC. FINANCIEROS"]
["ACAD","ASISTIR A REUNION DE TRABAJO EN XALAPA",2,"EDO.","XALAPA, VER.","2014-07-24","24/07/204","FED.",668,null,null,null,null,132,800,"REC. FINANCIEROS"]
["PYV","ASISTIR A LEGALIZAR CERTIFICADOS Y TITULOS.",1,"EDO.","XALAPA, VER.","2014-07-29","2014-07-29","FED.",300,null,null,212,null,200,712,"REC. FINANCIEROS"]
[null,null,null,null,null,null,null,null,null,null,null,null,null,null,null,"REC. FINANCIEROS"]
[]
[]
["PyV","DIRECCIÓN DE PLANEACIÓN Y VINCULACIÓN"]
["ACAD.","DIRECCIÓN ACADÉMICA"]
["SIND.","SINDICATO"]
["ADMO.","SUBDIRECCIÓN ADMINISTRATIVA"]
["FED. ","RECURSO FEDERAL"]
["I.P.","INGRESOS PROPIOS"]

{"sheet":"Hoja2","index":1,"n_rows":0,"n_cols":0,"rows_kept":0,"cut":false,"hidden":false,"merged":[]}

{"sheet":"Hoja3","index":2,"n_rows":0,"n_cols":0,"rows_kept":0,"cut":false,"hidden":false,"merged":[]}